bitfinex/quotes_SOLUSD_20250714
["timestamp","ask_amount","ask_price","bid_price","bid_amount"]
[1752520460528,13.06656715,162.96,162.93,32.1]
[1752520460742,39.06656715,162.96,162.93,32.1]
[1752520461242,32.13656822,162.96,162.94,0.72]
[1752520461415,32.13656822,162.96,162.95,31.38]
[1752520462235,26.0,162.96,162.95,32.1]
[1752520462622,147.9,162.97,162.95,32.1]
[1752520462825,147.9,162.97,162.96,0.72]
[1752520463131,147.9,162.97,162.96,7.64993976]
[1752520463632,147.9,162.97,162.96,9.29123976]
[1752520464936,147.9,162.97,162.96,15.42771496]
[1752520466209,173.9,163.01,162.96,15.42771496]
[1752520466535,173.9,163.01,162.98,6.92993976]
[1752520466831,173.9,163.01,162.99,32.08]
[1752520467025,173.9,163.01,163.0,0.72]
[1752520468518,173.9,163.01,163.0,32.08]
[1752520469436,173.9,163.01,163.0,31.36]
[1752520470624,173.9,163.01,163.0,32.04]
[1752520471535,0.06,163.04,163.0,38.96993976]
[1752520471737,0.06,163.04,163.01,8.22339905]
[1752520471927,0.06,163.04,163.02,31.36]
[1752520472121,0.06,163.04,163.02,32.04]
[1752520472924,0.06,163.04,163.03,0.68]
[1752520474838,7.69993976,163.04,163.02,31.36]
[1752520475138,13.8336098,163.04,163.02,31.36]
[1752520475719,8.40546932,163.03,162.97,0.68]
[1752520475940,6.92993976,163.0,162.98,31.36]
[1752520476239,26.0,163.03,162.99,7.60993976]
[1752520476445,26.0,163.03,162.96,8.39137143]
[1752520476446,0.06,163.04,163.0,39.58343669]
[1752520476737,0.06,163.04,163.01,0.68]
[1752520477038,0.06,163.04,163.02,31.36]
[1752520477229,0.06,163.04,163.02,32.04]
[1752520477430,0.06,163.04,163.03,0.68]
[1752520481519,0.06,163.04,163.03,7.60993976]
[1752520482741,0.06,163.04,163.03,14.35716418]
[1752520484244,0.06,163.04,163.03,7.60993976]
[1752520484759,0.06,163.04,163.03,8.22332379]
[1752520486459,0.06,163.04,163.03,14.35716418]
[1752520491232,0.06,163.04,163.03,38.07178791]
[1752520493149,0.06,163.04,163.03,44.47868791]
[1752520493355,0.06,163.08,163.04,16.78468397]
[1752520493556,0.06,163.08,163.07,6.92993976]
[1752520493851,0.06,163.08,163.07,38.86317334]
[1752520494155,0.06,163.08,163.07,39.54317334]
[1752520494636,0.06,163.08,163.07,45.67550914]
[1752520495034,0.06,163.08,163.07,47.28850914]
[1752520495529,0.06,163.08,163.07,64.07319311]
[1752520495943,0.06,163.08,163.07,70.20359311]
[1752520497665,1e-08,163.08,163.07,70.20359311]
[1752520497863,0.06,163.11,163.1,26.0]
[1752520498053,0.06,163.11,163.1,88.57768427]
[1752520498248,0.06,163.11,163.1,89.25768427]
[1752520498661,0.06,163.11,163.1,82.32774451]
[1752520499868,0.06,163.11,163.1,88.45895235]
[1752520501469,0.06,163.11,163.1,33.42432862]
[1752520501670,0.06,163.11,163.08,17.45468397]
[1752520501973,0.06,163.11,163.09,38.24993976]
[1752520503273,0.77,163.11,163.09,31.32]
[1752520504647,0.06,163.11,163.1,8.21306054]
[1752520505155,0.06,163.11,163.1,14.34426838]
[1752520507155,0.06,163.11,163.1,0.67]
[1752520507358,0.06,163.11,163.09,37.45152987]
[1752520508573,0.06,163.11,163.09,45.05146963]
[1752520509390,0.06,163.11,163.1,13.7311476]
[1752520509685,0.06,163.11,163.1,14.34426838]
[1752520510783,0.06,163.11,163.09,44.38145368]
[1752520514178,0.06,163.11,163.09,45.05145368]
[1752520514479,0.77,163.11,163.09,13.06145368]
[1752520514682,0.77,163.11,163.1,31.3]
[1752520515598,7.69993976,163.11,163.1,31.3]
[1752520516888,13.83077171,163.11,163.1,31.3]
[1752520518378,14.59630127,163.11,163.1,31.3]
[1752520519473,7.69993976,163.11,163.1,31.3]
[1752520522675,6.98993976,163.11,163.1,31.3]
[1752520523804,7.69993976,163.11,163.1,31.3]
[1752520524100,13.83077171,163.11,163.1,31.3]
[1752520524600,7.69993976,163.11,163.1,31.3]
[1752520524980,13.83077171,163.11,163.1,31.3]
[1752520531107,6.90083195,163.11,163.1,31.3]
[1752520531408,13.83077171,163.11,163.1,31.3]
[1752520532488,13.83077171,163.11,163.09,31.3]
[1752520532689,7.59993976,163.1,163.09,31.3]
[1752520534299,13.7311476,163.1,163.09,31.3]
[1752520535007,14.49667716,163.1,163.08,0.03]
[1752520535316,198.28462373,163.09,163.08,0.03]
[1752520536101,174.57,163.09,163.08,0.03]
[1752520536298,180.82993976,163.09,163.08,0.03]
[1752520536606,154.03158378,163.09,163.08,0.03]
[1752520536807,160.96152354,163.09,163.08,0.03]
[1752520537002,161.63152354,163.09,163.08,0.03]
[1752520537307,145.01323073,163.09,163.08,0.03]
[1752520539688,145.01323073,163.09,163.01,0.03]
[1752520539689,26.0,163.06,163.01,0.03]
[1752520539999,6.92993976,163.02,163.01,0.03]
[1752520540196,6.92993976,163.02,163.01,31.33]
[1752520540393,7.59993976,163.02,163.01,0.03]
[1752520540603,7.59993976,163.02,162.96,2.3013]
[1752520540791,6.92993976,162.97,162.95,0.71]
[1752520541123,26.0,162.99,162.93,27.19]
[1752520541124,6.92993976,162.96,162.93,27.19]
[1752520541412,6.13685179,162.95,162.94,32.01]
[1752520541911,13.06654672,162.96,162.94,32.01]
[1752520542126,6.92993976,162.97,162.95,0.71]
[1752520542412,13.06576936,162.98,162.95,0.71]
[1752520542591,13.06576936,162.98,162.96,0.71]
[1752520542796,6.92993976,162.97,162.95,0.71]
[1752520543314,13.06636637,162.97,162.95,0.71]
[1752520543502,13.06636637,162.97,162.94,31.3]
[1752520543697,13.06636637,162.97,162.94,32.01]
[1752520544004,6.92993976,162.96,162.94,32.01]
[1752520544436,13.06636637,162.97,162.94,32.01]
[1752520544714,6.92993976,162.96,162.94,32.01]
[1752520544917,6.92993976,162.95,162.94,31.3]
[1752520545087,6.80642661,162.97,162.94,31.3]
[1752520545411,6.92993976,162.96,162.94,31.3]
[1752520545589,6.80642661,162.97,162.94,31.3]
[1752520545590,6.92993976,162.95,162.94,31.3]
[1752520546691,6.92993976,162.96,162.94,32.01]
[1752520546894,6.92993976,162.98,162.95,0.71]
[1752520547204,6.92993976,162.98,162.94,31.3]
[1752520547205,6.92993976,162.96,162.94,31.3]
[1752520547402,6.92993976,162.95,162.94,31.3]
[1752520548509,6.92993976,162.97,162.94,32.01]
[1752520548812,6.92993976,162.97,162.95,0.71]
[1752520549201,6.92993976,162.97,162.96,0.71]
[1752520549396,6.92993976,162.98,162.96,0.71]
[1752520549591,157.28170719,162.99,162.97,31.32]
[1752520549592,138.21164695,162.99,162.97,31.32]
[1752520549802,131.28170719,162.99,162.98,0.71]
[1752520550607,6.92993976,163.01,162.98,0.71]
[1752520550917,6.92993976,163.02,162.98,0.71]
[1752520551224,6.92993976,163.03,162.98,8.25351197]
[1752520551395,6.92993976,163.03,162.99,0.71]
[1752520551719,6.92993976,163.03,163.0,32.03]
[1752520552220,137.41525236,163.04,163.01,0.71]
[1752520552221,6.92993976,163.04,163.01,0.71]
[1752520553024,7.59993976,163.03,163.0,31.32]
[1752520553313,6.92993976,163.03,163.01,0.71]
[1752520553510,6.92993976,163.04,163.01,0.71]
[1752520553723,6.92993976,163.04,163.02,0.71]
[1752520553902,32.13273077,163.06,163.03,31.3]
[1752520554103,7.59993976,163.05,163.03,31.3]
[1752520554420,6.92993976,163.04,163.03,31.3]
[1752520555100,7.59993976,163.04,163.03,31.3]
[1752520555499,13.73340394,163.04,163.03,31.3]
[1752520557710,20.6633437,163.04,163.0,31.3]
[1752520557911,6.92993976,163.01,163.0,31.3]
[1752520558802,13.72453272,163.01,163.0,31.3]
[1752520559910,13.06453272,163.01,163.0,31.3]
[1752520560312,6.92993976,163.02,163.0,32.02]
[1752520560512,6.92993976,163.02,163.0,31.3]
[1752520560838,6.92993976,163.01,163.0,31.3]
[1752520561615,6.92993976,163.01,163.0,32.02]
[1752520561936,33.69546932,163.05,163.0,38.94993976]
[1752520562107,6.92993976,163.04,163.0,31.3]
[1752520562306,6.92993976,163.04,163.01,0.72]
[1752520562704,6.92993976,163.03,163.0,31.3]
[1752520562922,6.92993976,163.03,163.0,32.02]
[1752520563205,6.92993976,163.02,163.0,31.3]
[1752520563410,6.92993976,163.01,163.0,31.3]
[1752520564229,7.58993976,163.01,163.0,31.3]
[1752520564414,7.58993976,163.01,162.97,31.3]
[1752520564608,6.92993976,162.98,162.97,31.3]
[1752520565015,13.06566193,162.98,162.97,31.3]
[1752520565814,13.72566193,162.98,162.97,31.3]
[1752520566533,6.79572217,162.98,162.97,31.3]
[1752520566738,13.06566193,162.98,162.97,31.3]
[1752520567029,6.92993976,162.98,162.97,32.02]
[1752520567234,6.92993976,162.98,162.97,31.3]
[1752520567529,8.35546932,162.98,162.94,0.03]
[1752520567834,0.66,162.97,162.94,31.33]
[1752520568031,6.92993976,162.95,162.94,31.33]
[1752520570334,13.06679155,162.95,162.94,31.33]
[1752520570647,6.79685179,162.95,162.94,0.03]
[1752520570839,13.72679155,162.95,162.94,0.03]
[1752520571041,31.27700508,162.95,162.94,0.03]
[1752520572122,39.83232111,162.95,162.94,0.03]
[1752520572418,6.92993976,162.96,162.94,0.75]
[1752520573550,34.35546932,162.95,162.94,0.03]
[1752520575347,40.49232111,162.95,162.94,0.03]
[1752520575533,31.27700508,162.95,162.94,0.03]
[1752520577925,6.92993976,162.96,162.94,0.75]
[1752520578126,32.92993976,162.96,162.95,0.72]
[1752520578652,6.92993976,162.96,162.95,0.72]
[1752520579046,0.66,162.96,162.94,0.03]
[1752520579249,34.35546932,162.95,162.94,0.03]
[1752520579836,33.69546932,162.95,162.94,0.03]
[1752520580259,40.49232111,162.95,162.94,0.03]
[1752520581666,188.39232111,162.95,162.94,0.03]
[1752520581858,187.62679155,162.95,162.94,0.03]
[1752520582177,173.9,162.95,162.94,0.03]
[1752520582354,180.82993976,162.95,162.94,0.03]
[1752520582937,173.9,162.95,162.94,0.03]
[1752520583142,180.82993976,162.95,162.94,0.03]
[1752520583640,147.9,162.95,162.94,0.75]
[1752520583842,154.82993976,162.95,162.94,0.75]
[1752520584660,154.82993976,162.95,162.94,0.03]
[1752520586243,154.82993976,162.95,162.94,0.75]
[1752520587085,6.92993976,162.96,162.94,0.75]
[1752520587364,26.0,162.97,162.95,31.5]
[1752520587577,26.0,162.97,162.96,0.72]
[1752520587944,148.56,163.0,162.96,0.72]
[1752520588140,154.82993976,163.0,162.96,0.72]
[1752520589670,0.06,163.01,162.96,1.33364752]
[1752520589969,6.98993976,163.01,162.97,0.65]
[1752520590167,0.06,163.01,162.97,7.57993976]
[1752520590347,0.06,163.01,162.98,7.57993976]
[1752520590545,0.06,163.01,162.99,31.5]
[1752520590742,0.06,163.01,162.99,32.15]
[1752520590980,0.06,163.01,163.0,0.65]
[1752520591477,0.06,163.01,163.0,6.78496932]
[1752520591663,0.06,163.01,163.0,13.71490908]
[1752520591968,0.06,163.01,163.0,15.24810908]
[1752520592149,0.06,163.01,163.0,21.30070908]
[1752520596264,0.06,163.01,163.0,8.31816932]
[1752520597066,0.06,163.01,163.0,2.1832]
[1752520600253,0.06,163.01,162.99,31.5]
[1752520600467,0.06,163.01,162.99,32.15]
[1752520600661,0.06,163.01,162.99,38.28532384]
[1752520600859,0.06,163.01,163.0,0.65]
[1752520602065,0.06,163.01,163.0,8.19343669]
[1752520602478,0.06,163.01,163.0,14.32840601]
[1752520605268,0.06,163.01,163.0,31.11308998]
[1752520605478,0.06,163.01,163.0,32.76188998]
[1752520606562,147.96,163.1,163.0,48.09931329]
[1752520606755,147.96,163.1,163.06,6.92993976]
[1752520606958,147.96,163.1,163.07,32.13]
[1752520606959,0.06,163.1,163.07,32.13]
[1752520607279,0.06,163.1,163.07,31.48]
[1752520607583,0.06,163.1,163.08,0.65]
[1752520607880,0.06,163.1,163.09,31.48]
[1752520609381,0.06,163.1,163.09,37.61158378]
[1752520609563,0.06,163.1,163.09,38.26158378]
[1752520609886,0.06,163.1,163.09,45.19152354]
[1752520612582,0.06,163.1,163.09,38.26158378]
[1752520612885,0.06,163.1,163.09,45.19152354]
[1752520614482,0.06,163.1,163.09,45.17152354]
[1752520617185,0.06,163.1,163.09,68.28120751]
[1752520622679,0.06,163.1,163.09,61.35126775]
[1752520622862,0.06,163.1,163.09,45.17152354]
[1752520623066,0.06,163.1,163.09,37.59158378]
[1752520623298,0.06,163.1,163.09,31.46]
[1752520623598,7.68993976,163.1,163.09,31.46]
[1752520623998,0.06,163.1,163.09,31.46]
[1752520624600,0.06,163.1,163.09,45.24152354]
[1752520624767,0.06,163.1,163.09,31.46]
[1752520625768,0.06,163.1,163.09,37.59158378]
[1752520625969,0.06,163.1,163.09,45.85468191]
[1752520627192,0.06,163.1,163.09,47.40538191]
[1752520627578,0.06,163.11,163.09,64.19006588]
[1752520627769,0.06,163.12,163.11,16.78468397]
[1752520627969,1e-08,163.12,163.11,62.67764668]
[1752520628184,1e-08,163.12,163.11,63.39764668]
[1752520629601,1e-08,163.12,163.11,69.52847863]
[1752520629802,1e-08,163.13,163.11,69.52847863]
[1752520629984,1e-08,163.13,163.12,13.85987952]
[1752520630181,1e-08,163.13,163.12,14.57987952]
[1752520630873,1e-08,163.13,163.12,63.49501959]
[1752520631080,0.06,163.17,163.12,115.95484037]
[1752520631294,0.06,163.17,163.16,51.36072373]
[1752520631495,0.06,163.17,163.16,82.76072373]
[1752520631791,1e-08,163.17,163.16,83.48072373]
[1752520632897,1e-08,163.17,163.16,89.6096769]
[1752520633088,1e-08,163.17,163.16,90.22257221]
[1752520634592,1e-08,163.17,163.16,58.82257221]
[1752520634769,1e-08,163.17,163.16,90.22257221]
[1752520636992,1e-08,163.17,163.16,39.67178824]
[1752520637199,1e-08,163.17,163.16,71.05178824]
[1752520638287,1e-08,163.17,163.16,71.77178824]
[1752520641882,1e-08,163.17,163.16,88.55647221]
[1752520642288,0.06,163.2,163.17,16.78468397]
[1752520642489,0.06,163.2,163.19,6.92993976]
[1752520642897,0.06,163.2,163.19,13.77776621]
[1752520643409,0.06,163.2,163.19,30.56245018]
[1752520644982,0.06,163.2,163.19,6.12782645]
[1752520645213,0.06,163.2,163.19,13.05776621]
[1752520645591,0.06,163.2,163.19,13.77776621]
[1752520646110,0.06,163.2,163.19,45.13776621]
[1752520648195,0.06,163.2,163.19,13.77776621]
[1752520648394,0.06,163.2,163.19,45.13776621]
[1752520648600,0.06,163.2,163.19,38.20782645]
[1752520648811,0.06,163.2,163.19,45.13776621]
[1752520649999,0.06,163.2,163.19,45.11776621]
[1752520653998,0.06,163.2,163.19,45.08776621]
[1752520657819,0.06,163.2,163.19,13.74776621]
[1752520658123,0.06,163.2,163.19,45.04776621]
[1752520659310,0.06,163.2,163.19,38.11782645]
[1752520659525,0.06,163.2,163.19,45.04776621]
[1752520660104,0.06,163.2,163.19,61.83245018]
[1752520660307,0.06,163.2,163.19,62.44523282]
[1752520661321,0.1,163.21,163.2,16.78468397]
[1752520661513,0.06,163.22,163.2,31.33456349]
[1752520661829,0.06,163.22,163.21,49.38739152]
[1752520662130,0.06,163.24,163.23,13.05626457]
[1752520662327,0.06,163.24,163.23,61.14094854]
[1752520662508,1e-08,163.24,163.23,62.44358102]
[1752520666816,0.67000001,163.24,163.23,31.28]
[1752520667315,0.67000001,163.24,163.23,37.40632481]
[1752520667509,0.67000001,163.24,163.23,31.28]
[1752520669441,0.67000001,163.24,163.23,37.40632481]
[1752520669735,1e-08,163.24,163.23,37.40632481]
[1752520669912,1e-08,163.24,163.23,44.94889705]
[1752520671417,1e-08,163.24,163.23,62.42358102]
[1752520674247,1e-08,163.24,163.23,55.49364126]
[1752520674434,1e-08,163.24,163.23,62.42358102]
[1752520675033,1e-08,163.24,163.23,61.73358102]
[1752520676358,1e-08,163.24,163.23,62.42358102]
[1752520678161,0.06,163.29,163.27,48.90950788]
[1752520678349,0.1,163.31,163.3,42.78468397]
[1752520678653,0.1,163.31,163.3,80.99462373]
[1752520678838,0.81,163.31,163.27,6.12482391]
[1752520679039,0.81,163.31,163.29,6.92993976]
[1752520679252,0.81,163.31,163.3,31.38]
[1752520681665,0.1,163.31,163.3,62.54069231]
[1752520682382,0.06,163.33,163.32,32.92993976]
[1752520682683,0.06,163.33,163.32,64.92223464]
[1752520683093,1e-08,163.33,163.32,82.41691861]
[1752520684072,1e-08,163.33,163.32,88.53986742]
[1752520684791,1e-08,163.33,163.32,87.82986742]
[1752520685157,1e-08,163.33,163.32,31.99229488]
[1752520685361,0.71000001,163.33,163.32,44.43288857]
[1752520685584,0.71000001,163.33,163.32,31.38]
[1752520688475,1e-08,163.33,163.32,38.30993976]
[1752520688683,1e-08,163.33,163.32,31.38]
[1752520689068,0.71000001,163.33,163.32,31.38]
[1752520690185,0.71000001,163.33,163.32,37.50294881]
[1752520690377,1e-08,163.33,163.32,44.43288857]
[1752520691473,1e-08,163.33,163.32,38.30993976]
[1752520691679,0.71000001,163.33,163.32,38.30993976]
[1752520692193,7.63993977,163.33,163.32,31.38]
[1752520693975,0.71000001,163.33,163.32,31.38]
[1752520700396,1e-08,163.33,163.32,31.38]
[1752520700710,1e-08,163.33,163.32,37.50294881]
[1752520701111,1e-08,163.33,163.32,44.43288857]
[1752520702103,1e-08,163.33,163.32,31.38]
[1752520702104,0.71000001,163.33,163.32,31.38]
[1752520704727,1e-08,163.33,163.32,31.38]
[1752520707612,0.71000001,163.33,163.32,31.38]
[1752520708014,1e-08,163.33,163.32,31.38]
[1752520708202,1e-08,163.33,163.32,45.14288857]
[1752520712726,1e-08,163.33,163.32,61.92757254]
[1752520712928,1e-08,163.33,163.32,63.55567254]
[1752520720323,1e-08,163.33,163.32,32.17567254]
[1752520720628,1e-08,163.33,163.32,54.91763278]
[1752520720943,0.67000001,163.33,163.32,31.3]
[1752520721239,0.67000001,163.33,163.32,37.42294881]
[1752520721443,1e-08,163.33,163.32,37.42294881]
[1752520722031,0.67000001,163.33,163.32,31.3]
[1752520722226,0.67000001,163.33,163.31,0.03]
[1752520722227,7.59993977,163.33,163.31,0.03]
[1752520722421,6.92993976,163.32,163.31,0.03]
[1752520722616,0.67,163.32,163.31,31.35]
[1752520722845,1e-08,163.33,163.31,31.35]
[1752520723038,0.67,163.32,163.31,31.35]
[1752520724241,7.59993976,163.32,163.31,31.35]
[1752520726732,0.67,163.32,163.31,31.35]
[1752520727558,1e-08,163.33,163.31,31.35]
[1752520727750,0.67000001,163.33,163.31,31.35]
[1752520727925,0.67000001,163.33,163.31,37.4731841]
[1752520728126,1e-08,163.33,163.31,37.4731841]
[1752520728855,0.67000001,163.33,163.31,37.4731841]
[1752520729235,1e-08,163.33,163.31,45.06312386]
[1752520729930,1e-08,163.33,163.32,6.92993976]
[1752520730254,1e-08,163.33,163.32,7.58993976]
[1752520731360,1e-08,163.33,163.32,13.71288857]
[1752520733261,1e-08,163.33,163.32,14.32518345]
[1752520733436,1e-08,163.33,163.32,13.71288857]
[1752520740460,1e-08,163.33,163.32,13.05288857]
[1752520740762,1e-08,163.33,163.32,13.71288857]
[1752520744066,1e-08,163.33,163.32,13.05288857]
[1752520744474,1e-08,163.33,163.32,13.71288857]
[1752520747364,1e-08,163.33,163.32,6.78294881]
[1752520747572,1e-08,163.33,163.32,13.71288857]
[1752520748162,1e-08,163.33,163.32,6.78294881]
[1752520748364,1e-08,163.33,163.32,13.71288857]
[1752520751177,1e-08,163.33,163.32,30.49757254]
[1752520751554,1e-08,163.34,163.33,22.9072579]
[1752520751766,1e-08,163.34,163.33,62.38945505]
[1752520753051,1e-08,163.34,163.33,37.40257393]
[1752520753256,0.71000001,163.34,163.31,0.03]
[1752520753469,6.92993976,163.33,163.31,0.03]
[1752520753776,13.81825717,163.32,163.31,0.03]
[1752520753978,14.52825717,163.32,163.31,0.03]
[1752520754777,21.08915717,163.32,163.31,0.03]
[1752520755073,185.77384114,163.32,163.31,0.03]
[1752520755276,186.59667254,163.32,163.31,0.03]
[1752520755974,26.0,163.29,163.25,0.03]
[1752520756162,6.92993976,163.26,163.25,31.31]
[1752520756481,7.63993976,163.26,163.25,31.31]
[1752520757655,13.76513882,163.26,163.25,31.31]
[1752520757875,13.76513882,163.26,163.25,0.03]
[1752520760270,7.63993976,163.26,163.25,0.03]
[1752520760469,14.53066838,163.26,163.25,0.03]
[1752520762061,7.60072862,163.26,163.25,0.03]
[1752520762268,13.76513882,163.26,163.25,0.03]
[1752520763166,7.63993976,163.26,163.25,0.03]
[1752520763460,13.76513882,163.26,163.25,0.03]
[1752520763656,7.63993976,163.26,163.25,0.03]
[1752520763871,8.40546932,163.26,163.25,0.03]
[1752520764676,0.76552956,163.27,163.25,0.03]
[1752520764879,0.76552956,163.27,163.26,31.3]
[1752520765488,1.47552956,163.27,163.26,31.3]
[1752520765864,8.40546932,163.27,163.26,31.3]
[1752520766776,14.53029323,163.27,163.26,31.3]
[1752520767883,14.53029323,163.27,163.25,0.03]
[1752520768070,0.71,163.26,163.25,0.03]
[1752520768272,7.63993976,163.26,163.25,0.03]
[1752520768592,13.76513882,163.26,163.25,0.03]
[1752520768794,7.63993976,163.26,163.25,0.03]
[1752520769635,0.71,163.26,163.25,0.03]
[1752520769886,0.76552956,163.27,163.25,0.03]
[1752520770188,0.76552956,163.27,163.25,0.69]
[1752520770562,0.76552956,163.27,163.25,0.03]
[1752520770972,1.42552956,163.27,163.25,0.03]
[1752520771278,0.66,163.26,163.25,0.03]
[1752520771993,7.69546932,163.27,163.25,0.03]
[1752520772292,7.69546932,163.27,163.26,31.3]
[1752520772492,8.35546932,163.27,163.26,31.3]
[1752520773190,0.76552956,163.27,163.26,31.3]
[1752520776579,8.35546932,163.27,163.26,31.3]
[1752520776879,14.48029323,163.27,163.26,31.3]
[1752520777188,14.48029323,163.27,163.25,0.03]
[1752520777510,7.58993976,163.26,163.25,0.03]
[1752520777983,6.92993976,163.26,163.25,0.03]
[1752520778184,7.58993976,163.26,163.25,0.03]
[1752520778496,13.71513882,163.26,163.25,0.03]
[1752520778696,39.71513882,163.26,163.25,0.03]
[1752520780304,32.78519906,163.26,163.25,0.03]
[1752520780601,39.71513882,163.26,163.25,0.03]
[1752520783701,33.58993976,163.26,163.25,0.03]
[1752520783898,40.48066838,163.26,163.25,0.03]
[1752520784297,34.35546932,163.26,163.25,0.03]
[1752520785111,33.69546932,163.26,163.25,0.03]
[1752520785613,0.76552956,163.26,163.25,0.03]
[1752520786582,7.69546932,163.27,163.25,0.03]
[1752520787794,14.48035314,163.27,163.25,0.03]
[1752520788207,13.82035314,163.27,163.25,0.03]
[1752520788382,7.58993976,163.26,163.25,0.03]
[1752520788712,181.48993976,163.26,163.25,0.03]
[1752520789693,187.61513882,163.26,163.25,0.03]
[1752520790107,173.9,163.26,163.25,0.03]
[1752520791194,187.61513882,163.26,163.25,0.03]
[1752520796312,186.95513882,163.26,163.25,0.03]
[1752520797017,180.02519906,163.26,163.25,0.03]
[1752520798014,186.95513882,163.26,163.25,0.03]
[1752520798218,187.61513882,163.26,163.25,0.03]
[1752520798705,186.95513882,163.26,163.25,0.03]
[1752520799718,173.9,163.26,163.25,0.03]
[1752520799921,173.9,163.26,163.25,0.72]
[1752520800509,26.0,163.26,163.25,0.72]
[1752520800816,0.76552956,163.27,163.25,0.72]
[1752520801021,0.76552956,163.27,163.26,31.3]
[1752520806916,0.76552956,163.27,163.26,31.99]
[1752520807527,0.76552956,163.27,163.26,31.3]
[1752520810223,8.40546932,163.27,163.26,31.3]
[1752520811027,0.76552956,163.27,163.26,31.3]
[1752520813835,147.9,163.28,163.26,31.99]
[1752520814012,147.9,163.28,163.26,38.22993976]
[1752520814333,0.06,163.31,163.27,7.61993976]
[1752520814547,0.06,163.31,163.29,6.92993976]
[1752520814712,0.06,163.31,163.3,31.28]
[1752520815028,0.06,163.31,163.3,31.97]
[1752520815846,0.06,163.31,163.3,45.02363847]
[1752520817134,0.06,163.31,163.3,38.09369871]
[1752520817433,0.06,163.31,163.3,45.02363847]
[1752520818929,33.69993976,163.31,163.25,0.03]
[1752520819129,6.92993976,163.26,163.25,0.03]
[1752520819507,7.63993976,163.26,163.25,0.03]
[1752520819906,1.47546233,163.3,163.25,0.72]
[1752520820110,6.92993976,163.28,163.25,0.03]
[1752520820336,7.69546932,163.27,163.25,0.03]
[1752520821129,0.76552956,163.27,163.25,0.72]
[1752520821314,7.69546932,163.28,163.25,0.72]
[1752520821628,6.92993976,163.27,163.25,0.72]
[1752520821830,7.69546932,163.28,163.25,0.72]
[1752520822210,6.92993976,163.28,163.26,0.69]
[1752520822413,0.76550921,163.29,163.27,31.34]
[1752520822414,7.69544897,163.29,163.27,31.34]
[1752520822613,0.76550921,163.29,163.27,31.34]
[1752520823017,147.9,163.3,163.28,13.74438122]
[1752520823217,147.9,163.3,163.29,7.61993976]
[1752520823445,0.06,163.31,163.29,7.61993976]
[1752520823747,0.06,163.31,163.3,32.03]
[1752520825642,0.06,163.31,163.3,38.95993976]
[1752520825935,0.06,163.31,163.3,31.34]
[1752520827335,0.77,163.31,163.3,31.34]
[1752520827527,0.06,163.31,163.3,31.34]
[1752520828444,0.06,163.31,163.3,45.08363847]
[1752520837746,0.06,163.31,163.3,45.69600834]
[1752520840743,0.06,163.31,163.3,71.69600834]
[1752520842039,0.06,163.31,163.3,88.48069231]
[1752520843548,1e-08,163.31,163.3,88.48069231]
[1752520843932,1e-08,163.31,163.3,62.48069231]
[1752520844139,1e-08,163.31,163.3,68.58069231]
[1752520844358,1e-08,163.34,163.33,26.0]
[1752520844548,1e-08,163.34,163.33,64.20993976]
[1752520844748,1e-08,163.34,163.33,64.92993976]
[1752520846262,1e-08,163.34,163.33,71.05251369]
[1752520847243,1e-08,163.34,163.33,87.83719766]
[1752520847960,0.06,163.38,163.33,110.07357224]